[Event "GER-ch Youth-U14 2022"]
[Site "Willingen"]
[Date "2022.06.05"]
[Round "1.21"]
[White "Miller, Elias"]
[Black "Chinguun Sundui"]
[Result "1-0"]
[ECO "D02"]
[WhiteElo "1548"]
[BlackElo "1731"]
[Annotator "NA RC COMBH"]
[PlyCount "146"]
[EventDate "2022.06.05"]
[EventType "swiss"]
[EventRounds "9"]
[EventCountry "GER"]
[SourceTitle "playchess.com"]
[Source "ChessBase"]
[SourceQuality "1"]
[TimeControl "40/4500+30:900+30"]

1. d4 {[%emt 0:00:00]} d5 {[%emt 0:00:00]} 2. Nf3 {[%emt 0:00:00]} c6 {[%emt 0:00:00]} 3. c4 {[%emt 0:00:00]} Nf6 {[%emt 0:00:00]} 4. g3 {[%emt 0:00:00]} Bf5 {[%emt 0:00:00]} 5. Bg2 {[%emt 0:00:00]} h6 {[%emt 0:00:00]} 6. O-O {[%emt 0:00:00]} e6 {[%emt 0:00:00]} 7. Nc3 {[%emt 0:04:10]} Be7 {[%emt 0:00:00]} 8. a3 {[%emt 0:04:52]} a5 {[%emt 0:00:00]} 9. Nd2 {[%emt 0:02:05]} O-O {[%emt 0:00:00]} 10. e4 {[%emt 0:03:40]} dxe4 {[%emt 0:00:00]} 11. Ndxe4 {[%emt 0:00:18]} Nbd7 {[%emt 0:03:12]} 12. d5 {[%emt 0:18:01]} Bxe4 {[%emt 0:03:58]} 13. Bxe4 {[%emt 0:00:44]} Nc5 {[%emt 0:01:18]} 14. Bg2 {[%emt 0:01:07]} cxd5 {[%emt 0:03:29]} 15. cxd5 {[%emt 0:00:25]} e5 {[%emt 0:02:30]} 16. Re1 {[%emt 0:04:20]} Bd6 {[%emt 0:01:28]} 17. Be3 {[%emt 0:02:35]} Nfd7 {[%emt 0:02:01]} 18. Rc1 {[%emt 0:10:00]} f5 {[%emt 0:03:25]} 19. Nb5 {[%emt 0:02:59]} Qb6 {[%emt 0:05:56]} 20. Nxd6 {[%emt 0:00:39]} Qxd6 {[%emt 0:00:15]} 21. Bxc5 {[%emt 0:05:48]} Nxc5 {[%emt 0:00:12]} 22. Qc2 {[%emt 0:01:13]} Rac8 {[%emt 0:05:02]} 23. b4 {[%emt 0:08:59]} axb4 {[%emt 0:00:28]} 24. axb4 {[%emt 0:01:10]} Na6 {[%emt 0:00:34]} 25. Qxc8 Rxc8 {[%emt 0:01:01]} 26. Rxc8+ {[%emt 0:02:46]} Kf7 {[%emt 0:01:48]} 27. b5 {[%emt 0:02:33]} Nc7 {[%emt 0:00:55]} 28. Rb8 {[%emt 0:04:20]} b6 {[%emt 0:05:02]} 29. Rc1 {[%emt 0:03:04]} Nxb5 {[%emt 0:05:21]} 30. Rb7+ {[%emt 0:00:13]} Kg8 {[%emt 0:00:18]} 31. Rc6 {[%emt 0:00:25]} Qb4 {[%emt 0:01:10]} 32. Rcxb6 {[%emt 0:02:24]} Qe1+ {[%emt 0:00:09]} 33. Bf1 {[%emt 0:00:07]} Nc3 {[%emt 0:01:52]} 34. Kg2 {[%emt 0:01:23]} Nd1 {[%emt 0:02:41]} 35. Rb2 {[%emt 0:01:20]} Nxb2 {[%emt 0:00:35]} 36. Rxb2 {[%emt 0:00:25]} Qe4+ {[%emt 0:00:08]} 37. f3 {[%emt 0:00:26]} Qxd5 {[%emt 0:00:09]} 38. Rc2 {[%emt 0:00:05]} Qd4 {[%emt 0:00:48]} 39. Re2 {[%emt 0:01:51]} g5 {[%emt 0:01:48]} 40. Re1 {[%emt 0:00:30]} h5 {[%emt 0:01:13]} 41. Re2 {[%emt 0:15:16]} g4 {[%emt 0:16:17]} 42. Rf2 {[%emt 0:00:42]} Qd5 {[%emt 0:01:22]} 43. Be2 {[%emt 0:00:28]} Kf7 {[%emt 0:01:24]} 44. Kf1 {[%emt 0:00:13]} Ke6 {[%emt 0:00:37]} 45. Kg1 {[%emt 0:00:11]} e4 {[%emt 0:01:09]} 46. fxg4 {[%emt 0:01:02]} hxg4 {[%emt 0:01:30]} 47. Rf1 {[%emt 0:00:21]} Qd4+ {[%emt 0:00:49]} 48. Rf2 {[%emt 0:00:46]} Ke5 {[%emt 0:02:21]} 49. Bf1 {[%emt 0:00:23]} Ke6 {[%emt 0:02:48]} 50. Kg2 {[%emt 0:00:10]} Kf6 {[%emt 0:01:31]} 51. Ra2 {[%emt 0:00:14]} Kg5 {[%emt 0:00:27]} 52. Kh1 {[%emt 0:01:16]} Qd5 {[%emt 0:02:27]} 53. Rb2 {[%emt 0:00:00]} Qc5 {[%emt 0:00:00]} 54. Kg2 {[%emt 0:00:00]} Qc3 {[%emt 0:00:00]} 55. Rf2 {[%emt 0:00:00]} Qe3 {[%emt 0:00:00]} 56. Be2 {[%emt 0:00:00]} Qd4 {[%emt 0:00:00]} 57. Bf1 {[%emt 0:00:00]} Qd5 {[%emt 0:00:00]} 58. Kg1 {[%emt 0:00:00]} e3 {[%emt 0:00:00]} 59. Rf4 {[%emt 0:00:00]} Qd2 {[%emt 0:00:00]} 60. Kh1 {[%emt 0:00:00]} e2 {[%emt 0:00:00]} 61. Bxe2 {[%emt 0:00:00]} Qxe2 {[%emt 0:00:00]} 62. Kg1 {[%emt 0:00:00]} Qe3+ {[%emt 0:00:00]} 63. Rf2 {[%emt 0:00:00]} Kf6 {[%emt 0:00:00]} 64. Kg2 {[%emt 0:00:00]} Ke5 {[%emt 0:00:00]} 65. Rf4 {[%emt 0:00:00]} Qxf4 {[%emt 0:00:00]} 66. gxf4+ {[%emt 0:00:00]} Kxf4 {[%emt 0:00:00]} 67. Kf2 {[%emt 0:00:00]} Ke4 {[%emt 0:00:00]} 68. Ke2 {[%emt 0:00:00]} f4 {[%emt 0:00:00]} 69. Kf2 {[%emt 0:00:00]} f3 {[%emt 0:00:00]} 70. Kf1 {[%emt 0:00:00]} Ke3 {[%emt 0:00:00]} 71. Ke1 {[%emt 0:00:00]} f2+ {[%emt 0:00:00]} 72. Kf1 {[%emt 0:00:00]} Kf3 {[%emt 0:00:00]} 73. h4 {[%emt 0:00:00]} g3 {[%emt 0:00:00]} 1-0

[Event "GER-ch Youth-U14 2022"]
[Site "Willingen"]
[Date "2022.06.05"]
[Round "1.22"]
[White "Huber, Benedikt"]
[Black "Grundmann, Max"]
[Result "1-0"]
[ECO "B77"]
[WhiteElo "2288"]
[BlackElo "1358"]
[Annotator "TA"]
[PlyCount "75"]
[EventDate "2022.06.05"]
[EventType "swiss"]
[EventRounds "9"]
[EventCountry "GER"]
[SourceTitle "playchess.com"]
[Source "ChessBase"]
[SourceQuality "1"]
[TimeControl "40/4500+30:900+30"]

{[%evp 22,75,25,14,38,29,87,86,86,44,85,27,260,261,248,172,160,164,214,227,409,441,620,628,743,195,181,192,189,182,188,174,303,288,295,295,303,303,295,302,288,272,279,274,1239,1150,2018,1996,29981,1871,2603,2441,29981,1092,29997,29998]} 1. e4 {[%emt 0:00:00]} c5 {[%emt 0:00:00]} 2. Nf3 {[%emt 0:00:00]} Nc6 {[%emt 0:00:00]} 3. d4 {[%emt 0:00:00]} cxd4 {[%emt 0:00:00]} 4. Nxd4 {[%emt 0:00:00]} Nf6 {[%emt 0:00:00]} 5. Nc3 {[%emt 0:00:00]} d6 {[%emt 0:00:00]} 6. f3 {[%emt 0:00:00]} g6 {[%emt 0:00:00]} 7. Bc4 {[%emt 0:00:00]} Bg7 {[%emt 0:00:00]} 8. Be3 {[%emt 0:00:00]} O-O {[%emt 0:00:00]} 9. Qd2 {[%emt 0:00:00]} Bd7 {[%emt 0:00:00]} 10. Bb3 {[%emt 0:00:00]} a6 {[%emt 0:00:00]} 11. g4 {[%emt 0:00:00]} b5 {[%emt 0:00:00]} 12. O-O-O {[%emt 0:00:00]} Na5 {[%emt 0:00:00] B78: Sicilian Dragon: Yugoslav Attack, 9 Bc4 Bd7 10 0-0-0 Rc8.} 13. h4 {[%emt 0:01:09]} h5 {[%emt 0:03:27]} (13... e5 $11 {remains equal.}) 14. gxh5 {[%emt 0:06:53] White is more active.} ({Much worse is} 14. g5 Ne8 $11) 14... Nxh5 {[%emt 0:00:23] White is better.} 15. Bh6 {[%emt 0:02:02]} Rc8 {[%emt 0:03:45] [#]} 16. Rdg1 $146 {[%emt 0:08:27]} ({Better is} 16. Bxg7 $16 Kxg7 17. Rhg1) ({Predecessor:} 16. Bxg7 Kxg7 17. Rdg1 e5 18. Nde2 Nxb3+ 19. axb3 Be6 20. Kb1 b4 21. Nd5 Bxd5 22. Qxd5 Rc5 {0-1 (34) Maksimovic,M (1898)-Heydarova,A (1760) Porec 2015}) 16... Qb6 $2 {[%emt 0:02:40] Black cannot hold the game after this.} (16... e6 $1 $11 {and Black stays safe.}) 17. Bxg7 $18 {[%emt 0:02:49] The board is on fire.} Kxg7 {[%emt 0:00:29]} 18. Nf5+ {[%emt 0:06:30]} Bxf5 {[%emt 0:01:00]} 19. exf5 {[%emt 0:00:56] [#] Hoping for Rg5.} Nxb3+ {[%emt 0:00:30]} (19... Nc4 $142 20. Bxc4 Rxc4) 20. axb3 {[%emt 0:00:06] Threatens to win with Rg5.} b4 $2 {[%emt 0:15:30]} (20... Qb7 21. Qd3 b4) 21. Nd5 $1 {[%emt 0:02:33][%csl LRb4,LRb6,LRe7]} Qa5 {[%emt 0:01:59]} (21... Qa7 $142 22. fxg6 (22. Nxb4 a5 $16) 22... f6) 22. Kb1 {[%emt 0:01:15]} e6 {[%emt 0:11:29]} 23. Rg5 $2 {[%emt 0:03:18]} Qxd5 {[%emt 0:02:28]} (23... exd5 24. Rxh5 Rh8 25. Qd4+ f6 {[#]} 26. Rg1 $1 Rxh5 27. Rxg6+ Kh7 28. Qg4) 24. f6+ $1 {[%emt 0:00:07]} Nxf6 {[%emt 0:01:20]} 25. Rxd5 {[%emt 0:00:04]} Nxd5 {[%emt 0:00:17]} 26. h5 {[%emt 0:00:32] aiming for Qd4+.} Kf6 {[%emt 0:04:04]} (26... Rh8 $142) 27. Qd4+ {[%emt 0:01:36]} Ke7 {[%emt 0:04:37]} 28. hxg6 {[%emt 0:01:30]} fxg6 {[%emt 0:01:21]} 29. Qg7+ {[%emt 0:00:17]} Rf7 {[%emt 0:00:45]} 30. Qxg6 {[%emt 0:00:07]} Rcf8 {[%emt 0:01:46]} 31. Re1 {[%emt 0:03:24]} Rf6 {[%emt 0:01:47]} 32. Qd3 {[%emt 0:00:14][%csl LRa6,LRd5] Black must now prevent Qxd5.} Rxf3 $2 {[%emt 0:00:36]} (32... Nc7 33. Qc4 Kd7 34. Qxb4 Rxf3 35. Qa4+ Kc8) 33. Qxd5 {[%emt 0:00:10]} R3f6 {[%emt 0:01:26]} 34. Qb7+ {[%emt 0:00:19]} Ke8 {[%emt 0:00:25]} 35. Qxa6 {[%emt 0:00:14]} (35. Qc6+ $142 Kd8 36. Qxd6+ Kc8 37. Re4 Rf4 38. Rxe6 R4f6 39. Qc5+ Kb8 40. Re7) 35... Kd7 {[%emt 0:01:04]} 36. Qb7+ {[%emt 0:00:46]} Ke8 {[%emt 0:00:25]} 37. Rd1 {[%emt 0:00:06]} (37. Qc8+ $142 Ke7 38. Qc7+ Ke8 39. Qxd6 Rg6 40. Rd1 Kf7 41. Rf1+ Rf6 42. Qd7+ Kg6 43. Rg1+ Kf5 44. Qd3+ Kf4 45. Rf1+ Kg4 46. Qe4+ Kh3 47. Rh1+ Kg3 48. Rg1+ Kf2 49. Rg2+ Kf1 50. Qe2#) 37... R8f7 {[%emt 0:00:48]} 38. Qb8+ {[%emt 0:00:11] Weighted Error Value: White=0.53/Black=1.55} 1-0

[Event "GER-ch Youth-U14 2022"]
[Site "Willingen"]
[Date "2022.06.05"]
[Round "1.23"]
[White "Detjen, Mattes"]
[Black "Braeutigam, Alexander"]
[Result "0-1"]
[ECO "B22"]
[WhiteElo "1098"]
[BlackElo "1749"]
[Annotator "NA RC COMBH"]
[PlyCount "66"]
[EventDate "2022.06.05"]
[EventType "swiss"]
[EventRounds "9"]
[EventCountry "GER"]
[SourceTitle "playchess.com"]
[Source "ChessBase"]
[SourceQuality "1"]
[TimeControl "40/4500+30:900+30"]

1. e4 {[%emt 0:00:00]} c5 {[%emt 0:00:00]} 2. c3 {[%emt 0:00:00]} d5 {[%emt 0:00:00]} 3. exd5 {[%emt 0:00:00]} Qxd5 {[%emt 0:00:00]} 4. d4 {[%emt 0:00:00]} g6 {[%emt 0:00:00]} 5. Nf3 {[%emt 0:00:00]} Bg7 {[%emt 0:00:00]} 6. Be2 {[%emt 0:00:00]} cxd4 {[%emt 0:00:00]} 7. cxd4 {[%emt 0:00:00]} Nf6 {[%emt 0:00:00]} 8. Nc3 {[%emt 0:00:00]} Qa5 {[%emt 0:00:00]} 9. O-O {[%emt 0:00:00]} O-O {[%emt 0:00:00]} 10. Qb3 {[%emt 0:03:38]} a6 {[%emt 0:01:51]} 11. Bc4 {[%emt 0:01:22]} e6 {[%emt 0:02:25]} 12. Be3 {[%emt 0:06:19]} b5 {[%emt 0:00:46]} 13. Be2 {[%emt 0:02:02]} Bb7 {[%emt 0:00:51]} 14. a3 {[%emt 0:06:21]} Nd5 {[%emt 0:01:05]} 15. Nxd5 {[%emt 0:04:48]} Bxd5 {[%emt 0:00:13]} 16. Qc2 {[%emt 0:00:12]} Nc6 {[%emt 0:01:20]} 17. b4 {[%emt 0:03:33]} Qb6 {[%emt 0:01:42]} 18. Qd2 {[%emt 0:01:48]} Rfd8 {[%emt 0:02:10]} 19. Rfd1 {[%emt 0:07:37]} Bb3 {[%emt 0:08:21]} 20. Rdb1 {[%emt 0:04:09]} Nxd4 {[%emt 0:03:43]} 21. Nxd4 {[%emt 0:08:36]} Bxd4 {[%emt 0:00:10]} 22. Bxd4 {[%emt 0:00:46]} Rxd4 {[%emt 0:00:08]} 23. Qe3 {[%emt 0:00:56]} Bc4 {[%emt 0:00:19]} 24. Bxc4 {[%emt 0:00:49]} bxc4 {[%emt 0:00:08]} 25. Rc1 {[%emt 0:00:19]} Rad8 {[%emt 0:00:13]} 26. h3 {[%emt 0:01:57]} Qd6 {[%emt 0:00:20]} 27. Qc3 {[%emt 0:04:28]} Qe5 {[%emt 0:02:06]} 28. Qc2 {[%emt 0:00:45]} c3 {[%emt 0:01:18]} 29. Re1 {[%emt 0:03:36]} Qc7 {[%emt 0:00:23]} 30. Rac1 {[%emt 0:01:19]} Rd3 {[%emt 0:00:40]} 31. Re3 {[%emt 0:03:21]} Rxe3 {[%emt 0:00:43]} 32. fxe3 {[%emt 0:00:08]} Rd2 {[%emt 0:00:27]} 33. Qxc3 {[%emt 0:01:24]} Rd1+ {[%emt 0:00:15]} 0-1

[Event "GER-ch Youth-U14 2022"]
[Site "Willingen"]
[Date "2022.06.05"]
[Round "2.1"]
[White "Deuer, Marius"]
[Black "Kocharin, Timur"]
[Result "1-0"]
[ECO "E48"]
[WhiteElo "2359"]
[BlackElo "1867"]
[Annotator "TA"]
[PlyCount "71"]
[EventDate "2022.06.05"]
[EventType "swiss"]
[EventRounds "9"]
[EventCountry "GER"]
[SourceTitle "playchess.com"]
[Source "ChessBase"]
[SourceQuality "1"]
[TimeControl "40/4500+30:900+30"]

{[%evp 11,71,7,8,-14,2,0,1,8,18,0,12,12,27,19,37,37,47,38,115,79,60,64,107,101,96,97,176,186,197,222,206,217,270,256,303,264,260,202,303,264,227,201,396,414,611,612,559,560,726,752,710,441,825,816,693,689,825,790,29988,29989,29992,29993]} 1. d4 {[%emt 0:00:00]} Nf6 {[%emt 0:00:00]} 2. c4 {[%emt 0:00:00]} e6 {[%emt 0:00:00]} 3. Nc3 {[%emt 0:00:00]} Bb4 {[%emt 0:00:00]} 4. e3 {[%emt 0:00:00]} O-O {[%emt 0:00:00]} 5. Bd3 {[%emt 0:00:00]} d5 {[%emt 0:00:00]} 6. cxd5 {[%emt 0:00:00]} exd5 {[%emt 0:00:00]} 7. a3 {[%emt 0:00:00] E48: Nimzo-Indian: Rubinstein: 5 Bd3 d5 including 6 Ne2, but excluding 6 a3.} Be7 {[%emt 0:00:00]} 8. Qc2 {[%emt 0:00:00]} b6 {[%emt 0:00:00] [#]} 9. Nge2 $146 {[%emt 0:00:00] The position is equal.} ({Predecessor:} 9. Nf3 Ba6 10. Bxa6 Nxa6 11. Ne5 Qe8 12. O-O Rc8 13. Qb3 Bd6 14. f4 c5 15. Nxd5 Bxe5 16. fxe5 Nxd5 17. Qxd5 {1-0 (33) Napoli,N (2309)-Maldonado Mena,G (2066) Calvia 2020}) 9... Bb7 {[%emt 0:00:00]} 10. b4 {[%emt 0:10:50]} Nbd7 {[%emt 0:00:00]} 11. Rb1 {[%emt 0:00:19]} c6 {[%emt 0:03:01]} 12. O-O {[%emt 0:05:09]} Qc7 {[%emt 0:08:12]} 13. Bd2 {[%emt 0:04:40]} Bd6 {[%emt 0:05:53]} 14. h3 {[%emt 0:02:29]} a5 {[%emt 0:08:27]} ({Better is} 14... a6 $14) 15. Rfc1 {[%emt 0:05:04]} Qd8 {[%emt 0:07:21]} 16. f3 {[%emt 0:04:53]} Qe7 {[%emt 0:05:17] White now steadily converts the win.} 17. e4 {[%emt 0:02:17]} axb4 {[%emt 0:04:58]} 18. axb4 {[%emt 0:01:26]} Bxb4 {[%emt 0:04:04]} (18... dxe4 $16 {might work better.} 19. fxe4 Rfd8) 19. e5 $18 {[%emt 0:05:23]} Nxe5 {[%emt 0:02:24]} 20. dxe5 {[%emt 0:04:39]} Bc5+ {[%emt 0:00:05]} 21. Kh1 {[%emt 0:00:13]} Qxe5 {[%emt 0:00:13]} 22. Na4 {[%emt 0:05:17]} Ba3 {[%emt 0:03:18]} 23. Re1 {[%emt 0:02:25]} (23. Rxb6 Bxc1 24. Bxc1 Bc8 $16) 23... b5 {[%emt 0:02:22]} 24. Nc5 {[%emt 0:01:20]} Bxc5 {[%emt 0:01:16]} (24... Bc8 $142 25. Ra1 h6) 25. Qxc5 {[%emt 0:00:24] Hoping for Nd4.} Nd7 {[%emt 0:01:44]} 26. Qc2 {[%emt 0:00:11]} h6 {[%emt 0:01:02]} (26... g6 {was worth a try.} 27. Bc3 Qc7) 27. Bc3 {[%emt 0:00:39] This bishop pair is nice.} Qc7 {[%emt 0:01:10]} (27... Qg5 $142 28. Nd4 c5) 28. Nd4 {[%emt 0:03:01]} Rfe8 {[%emt 0:03:23] [#] Prevents Re7.} 29. Nxb5 $1 {[%emt 0:04:44][%mdl 512]} Qf4 {[%emt 0:03:24]} (29... Rxe1+ 30. Rxe1) 30. Nd4 {[%emt 0:01:14][%cal Bb5d4,Bd4f5,Bf5e7,Be7g6][%mdl 32]} Nc5 {[%emt 0:01:16]} 31. Nf5 {[%emt 0:03:16]} Rxe1+ {[%emt 0:03:28]} (31... Nxd3 $142 32. Qxd3 Ba6) 32. Rxe1 {[%emt 0:00:08]} Nxd3 {[%emt 0:00:16]} 33. Qxd3 {[%emt 0:00:13]} Ba6 {[%emt 0:00:39]} 34. Qc2 {[%emt 0:01:56]} g6 {[%emt 0:03:03]} 35. Ne7+ {[%emt 0:01:52]} Kh7 {[%emt 0:00:09] [#]} 36. Nxg6 $1 {[%emt 0:00:10][%mdl 512] Weighted Error Value: White=0.20 (precise) /Black=0.64} 1-0

[Event "GER-ch Youth-U14 2022"]
[Site "Willingen"]
[Date "2022.06.05"]
[Round "2.2"]
[White "Krüger, Arthur"]
[Black "Sreyas Payyappat"]
[Result "0-1"]
[ECO "B12"]
[WhiteElo "1988"]
[BlackElo "2169"]
[Annotator "TA"]
[PlyCount "115"]
[EventDate "2022.06.05"]
[EventType "swiss"]
[EventRounds "9"]
[EventCountry "GER"]
[SourceTitle "playchess.com"]
[Source "ChessBase"]
[SourceQuality "1"]
[TimeControl "40/4500+30:900+30"]

{[%evp 10,115,36,16,42,-17,-18,-18,-20,-21,-15,-24,-31,-43,-38,-39,-29,-34,-29,-22,28,0,0,0,0,0,20,17,28,27,21,0,13,0,12,-69,62,0,0,0,0,0,0,0,0,0,0,0,0,0,0,0,0,0,58,41,51,37,32,0,37,33,184,187,191,54,58,70,64,0,15,0,12,0,0,0,17,0,0,0,0,0,0,0,0,-15,-20,-68,-61,-151,-79,-227,-219,-377,-370,-308,-222,-294,-303,-462,-372,-577,-372,-12841,-12841,-29996,-12839,-29990]} 1. e4 {[%emt 0:00:00]} c6 {[%emt 0:00:00]} 2. d4 {[%emt 0:00:00]} d5 {[%emt 0:00:00]} 3. e5 {[%emt 0:00:00]} Bf5 {[%emt 0:00:00]} 4. Nf3 {[%emt 0:00:00]} e6 {[%emt 0:00:00]} 5. Be2 {[%emt 0:00:00]} Ne7 {[%emt 0:00:00][%cal Bg8e7,Be7g6,Bg6f4,Bf4e2][%mdl 32]} 6. O-O {[%emt 0:00:00]} Ng6 {[%emt 0:00:00] B12: Caro-Kann: Advance Variation.} 7. Nbd2 {[%emt 0:00:00]} ({Better is} 7. c4 $14) 7... Nf4 $11 {[%emt 0:00:00]} 8. Nb3 {[%emt 0:00:00]} Nxe2+ {[%emt 0:00:00] The position is equal.} 9. Qxe2 {[%emt 0:00:00]} Nd7 {[%emt 0:00:00]} 10. Bd2 {[%emt 0:00:00]} Be7 {[%emt 0:00:00]} 11. a4 {[%emt 0:00:18]} O-O {[%emt 0:00:00]} 12. Rfc1 $1 {[%emt 0:02:49] [#]} f6 $146 {[%emt 0:04:14]} ({Predecessor:} 12... Rc8 13. a5 c5 14. dxc5 Nxc5 15. Nfd4 Bg6 16. Nxc5 Bxc5 17. c3 Bxd4 18. cxd4 Qd7 19. Bb4 Rxc1+ 20. Rxc1 Rc8 21. Rxc8+ Qxc8 {½-½ (21) Grabinsky,V (2219)-Villegas,P (2364) Chess.com INT 2020}) 13. exf6 $1 {[%emt 0:06:38]} Bxf6 {[%emt 0:03:58]} 14. Bb4 {[%emt 0:03:04]} Be7 {[%emt 0:06:02]} (14... Re8 $142) 15. Bxe7 {[%emt 0:00:53]} Qxe7 {[%emt 0:00:08]} 16. Ne5 {[%emt 0:03:27]} Nxe5 {[%emt 0:04:17]} 17. Qxe5 {[%emt 0:00:28]} Rf6 {[%emt 0:01:38]} 18. c3 {[%emt 0:03:20]} Raf8 {[%emt 0:03:07]} 19. f3 {[%emt 0:10:08] Prevents Be4.} Rg6 {[%emt 0:01:43][%cal Of5e4]} 20. Kh1 {[%emt 0:04:18]} Qh4 {[%emt 0:03:23]} 21. Re1 {[%emt 0:07:24]} Rg5 {[%emt 0:05:10][%cal Of5h3]} 22. Re2 {[%emt 0:11:46] [#]} (22. g3 $11 Qh5 23. Nd2) 22... b6 {[%emt 0:20:49]} (22... Bg4 $1 $15 23. Qd6 Rxf3 $1) 23. Qd6 {[%emt 0:08:18]} (23. Qe3 $14) 23... Rg6 $1 {[%emt 0:05:22][%cal Oe6e5]} 24. Qe5 {[%emt 0:03:09]} Bd3 {[%emt 0:03:10] Strongly threatening ...Bc4.} 25. Rd2 {[%emt 0:01:09]} Bc4 {[%emt 0:00:47]} 26. Nc1 {[%emt 0:00:31]} Qh6 {[%emt 0:09:36]} 27. Rf2 {[%emt 0:02:58]} Rg4 {[%emt 0:00:57][%cal Og4e4] And now ...Re4! would win.} 28. Kg1 {[%emt 0:02:46]} Rg5 {[%emt 0:00:39]} 29. Qd6 {[%emt 0:01:23]} Rg6 {[%emt 0:02:43][%cal Oe6e5] Threatens to win with ...e5!} 30. Qe5 {[%emt 0:00:38]} Rg5 {[%emt 0:01:49]} 31. Qd6 {[%emt 0:00:08]} Rgf5 {[%emt 0:00:26]} (31... Rg6 $11 32. b3 Ba6) 32. b3 $14 {[%emt 0:02:00]} Ba6 {[%emt 0:00:09]} 33. Na2 $1 {[%emt 0:03:30]} Qe3 {[%emt 0:00:29] Inhibits Re1.} 34. Qxc6 {[%emt 0:02:23]} (34. Nb4 $5 {[%cal Rb4a6]} Bb7 35. Nxc6 $14) 34... g5 {[%emt 0:00:48][%cal Og5g4]} (34... h6 $5 35. Nb4 Rxf3 36. gxf3 Rxf3 37. Qxe6+ (37. Nxa6 $2 Rxf2 38. Qxe6+ Qxe6 $19) 37... Qxe6 38. Rxf3 Bc8 $11) 35. Nb4 {[%emt 0:03:29]} Rc8 $2 {[%emt 0:02:09]} (35... Rxf3 $1 $14 36. gxf3 Rxf3 37. Qxe6+ (37. Nxa6 $2 Rxf2 38. Qxe6+ Qxe6 $19) (37. Qe8+ Kg7 $11) 37... Qxe6 38. Rxf3 g4) 36. Qd6 $1 $18 {[%emt 0:01:56]} Qxc3 {[%emt 0:00:32] [#]} 37. Qxe6+ {[%emt 0:00:56]} (37. Raf1 $1 $18 Bb7 38. Qxe6+ Rf7 39. Nxd5 Bxd5 40. Qxd5) 37... Rf7 $14 {[%emt 0:00:19]} 38. Qe1 {[%emt 0:01:08]} Bb7 {[%emt 0:01:50]} 39. Qxc3 {[%emt 0:01:12]} (39. h3 $14) 39... Rxc3 $11 {[%emt 0:00:07]} 40. Rb1 {[%emt 0:01:36]} Rfc7 {[%emt 0:01:14]} 41. Rbb2 {[%emt 0:16:39]} a5 {[%emt 0:19:49] ...Rc1+ is the strong threat.} 42. Na2 {[%emt 0:00:00] Against Rc1+} R3c6 {[%emt 0:00:00]} 43. Rfd2 {[%emt 0:00:00]} Ba6 {[%emt 0:00:00]} 44. Kf2 {[%emt 0:00:00]} Kf7 {[%emt 0:00:00]} 45. Ke3 {[%emt 0:00:00]} Kg6 {[%emt 0:00:00]} 46. Kf2 {[%emt 0:00:00]} h5 {[%emt 0:00:00][%cal Bh7h5,Bh5h4][%mdl 32]} 47. Rd1 {[%emt 0:00:00]} g4 {[%emt 0:00:00]} 48. Rdd2 {[%emt 0:00:00]} (48. fxg4 $11 hxg4 49. Kg3) 48... h4 {[%emt 0:00:00] Black is more active.} 49. Ke3 {[%emt 0:00:00]} (49. b4 $15 Bc8 50. bxa5 bxa5 51. f4) 49... Kg5 {[%emt 0:00:00]} (49... Rf7 $142 {aiming for ...Rcf6.} 50. Rdc2 Re6+ 51. Kf2 h3) 50. Kf2 {[%emt 0:00:00]} (50. b4 $17) 50... gxf3 $19 {[%emt 0:00:00]} 51. gxf3 $2 {[%emt 0:00:00]} (51. b4 fxg2 52. Kxg2) 51... Kf4 {[%emt 0:00:00]} 52. b4 {[%emt 0:00:00] Hoping for b5.} Rc4 {[%emt 0:00:00]} 53. bxa5 {[%emt 0:00:00]} bxa5 {[%emt 0:00:00]} 54. Rb6 {[%emt 0:01:10]} (54. Ke1 $142) 54... R7c6 {[%emt 0:00:00]} 55. Rb3 {[%emt 0:01:45]} (55. Rb8 $142 Rc2 56. Rf8+ Kg5 57. Rg8+ Kf5 58. Rf8+ Kg6 59. Rxc2 Rxc2+ 60. Ke3) 55... h3 {[%emt 0:00:00]} 56. Ke1 $2 {[%emt 0:01:26]} (56. Rb8 Rc2 57. Rf8+ Kg5 58. Rxc2 Rxc2+ 59. Kg3) 56... Rg6 {[%emt 0:00:00]} 57. Rb8 {[%emt 0:03:15] [#]} Rc8 {[%emt 0:00:00]} (57... Rc1+ $142 $3 {[%mdl 512]} 58. Rd1 Rg1+ 59. Kf2 Rf1+ 60. Rxf1 Rxf1#) 58. Rb5 {[%emt 0:00:53] What a bad dream for White.  Weighted Error Value: White=0.56/Black=0.34} 0-1